Workbook

Sheet DHCS Only (hidden)
A1: For DHCS use only.
A2: Click button to lock or unlock all sheets for editing.
A3: This tab should be hidden when not in use.

Sheet Instructions
B2: ='1. Information'!B2 -> Version 7/1/2018
B3: ='1. Information'!B3 -> Annual Mental Health Services Act Revenue and Expenditure Report
B4: ='1. Information'!B4 -> Fiscal Year 2017-18
B5: ARER Instructions
B7: • For detailed instructions, see Enclosure 2: Instruction Manual for Fiscal Year 2017-18 of the MHSA Annual Revenue and Expenditure Report.
B8: • These worksheets are used to report the total expenditures for each MHSA-funded program. Expenditures should be recognized in the period that the fund liability is incurred. (Accounting Standards and Procedures for Counties, State Controller’s Office (SCO), February 2018).
B9: • Counties must report any expenditure that occurred between July 1, 2017 and June 30, 2018, on the appropriate component worksheet.
B10: • Counties should reflect total (gross) program expenditures for each MHSA program on the MHSA Component Expenditure Worksheets.
B12: Step 1: Complete the Information worksheet | C12: The information provided on the Information worksheet automatically links to worksheets in the ARER. This worksheet eliminates the redundant entry of county name, code, and date on worksheets.
B14: Step 2: Complete section one and two of the Component Summary worksheet | C14: Section one: Enter the balance of Prudent Reserve and the Interest earned on the Local Mental Health Fund. Interest earned on local MHS fund is to be reported in total.
C15: Section two: Enter the component revenue received from prudent reserve transfers. Additionally, the worksheet is set up to distribute the interest reported in section one across CSS, PEI, and INN components according to 76%, 19% and 5%.
C16: Section three and four: These sections are linked to the remaining component worksheets and will auto populate as the county completes each individual worksheet.
B17: Step 3: Complete each component and adjustment worksheet | C17: In general, counties will enter expenditure data in the blue boxes throughout the workbook. Cells shaded gray will require no data entry because it is an excel formula or data is not relevant for that particular cell.
B18: Step 4: Review the Component Summary worksheet | C18: Counties should verify that each section of the Component Summary worksheet accurately reflect the expenditures reported on the component and adjustment worksheets.

Sheet 1. Information
B2: Version 7/1/2018
B3: Annual Mental Health Services Act Revenue and Expenditure Report
B4: Fiscal Year 2017-18
B5: Information
B7: 1 | C7: Date: | D7: 2018-12-31
B8: 2 | C8: County: | D8: Sierra
B9: 3 | C9: County Code: | D9: =IF(ISBLANK(D8),"",VLOOKUP(D8,Info_County_Code,2)) -> 46
B10: 4 | C10: Address: | D10: P.O. Box 265, 207 Front Street
B11: 5 | C11: City: | D11: Loyalton
B12: 6 | C12: Zip: | D12: 96118
B13: 7 | C13: County Population: Over 200,000? (Yes or No) | D13: =IF(ISBLANK(D8),"",VLOOKUP(D8,County_Population,5,FALSE)) -> No
B14: 8 | C14: Name of Preparer: | D14: Judy Blakney
B15: 9 | C15: Title of Preparer: | D15: Fiscal Officer
B16: 10 | C16: Preparer Contact Email: | D16: jblakney@sierracounty.ca.gov
B17: 11 | C17: Preparer Contact Telephone | D17: (530) 993-6730

Sheet 2. Component Summary
B2: ='1. Information'!B2 -> Version 7/1/2018
B3: ='1. Information'!B3 -> Annual Mental Health Services Act Revenue and Expenditure Report
B4: ='1. Information'!B4 -> Fiscal Year 2017-18
B5: Component Summary
B7: County: | C7: =IF(ISBLANK('1. Information'!D8),"",'1. Information'!D8) -> Sierra | F7: Date: | G7: =IF(ISBLANK('1. Information'!D7),"",'1. Information'!D7) -> 2018-12-31
B14: SECTION 1: Interest and Prudent Reserve | D14: TOTAL
B15: 1 | C15: Interest Earned on local MHS Fund | D15: 71779
B16: 2 | C16: Local Prudent Reserve Beginning Balance | D16: 741451.88
B17: 3 | C17: Local Prudent Reserve Ending Balance | D17: =D16+M22+M27+SUM('9. Adjustment (MHSA)'!F83:F112) -> 741451.88
D19: A | E19: B | F19: C | G19: D | H19: E | I19: F | J19: G | K19: H | L19: I | M19: J | N19: K
D20: CSS | E20: PEI | F20: INN | G20: WET | H20: CFTN | I20: TTACB | J20: WET RP | K20: PEI SW | L20: MHSA HP | M20: PR | N20: TOTAL
B21: SECTION 2: Transfers from Prudent Reserve and Interest Earned
B22: 4 | C22: Transfer from Local Prudent Reserve | M22: =(-D22-E22) -> 0 | N22: =SUM(D22:M22) -> 0
B23: 5 | C23: FY 2017-18 Interest Earned on local MHS Fund | D23: =D15*0.76 -> 54552.04 | E23: =D15*0.19 -> 13638.01 | F23: =D15*0.05 -> 3588.95 | N23: =SUM(D23:M23) -> 71779
B24: 6 | C24: TOTAL | D24: =SUM(D22:D23) -> 54552.04 | E24: 13638.01 | F24: 3588.95 | G24: 0 | H24: 0 | I24: 0 | J24: 0 | K24: 0 | L24: 0 | M24: 0 | N24: =SUM(D24:M24) -> 71779
B26: SECTION 3: Transfers to Prudent Reserve, WET or CFTN
B27: 7 | C27: Transfers | D27: =(G27+H27+M27)*-1 -> -227631 | G27: ='3. CSS'!F20 -> 227631 | H27: ='3. CSS'!F21 -> 0 | M27: ='3. CSS'!F22 -> 0 | N27: =SUM(D27:M27) -> 0
B29: SECTION 4: Program Expenditures and Sources of Funding 2017-18
B30: 8 | C30: MHSA Funds (Including Interest) | D30: ='3. CSS'!F25 -> 821725 | E30: ='4. PEI'!F21 -> 297593 | F30: ='5. INN'!F22 -> 0 | G30: ='6. WET'!F20 -> 41186 | H30: ='7. CFTN'!F21 -> 12519 | J30: ='8. WET RP, HP'!E14 -> 0 | K30: ='4. PEI'!F17 -> 0 | L30: ='8. WET RP, HP'!E15 -> 0 | N30: =SUM(D30:M30) -> 1173023
B31: 9 | C31: Medi-Cal FFP | D31: ='3. CSS'!G25 -> 0 | E31: ='4. PEI'!G21 -> 0 | F31: ='5. INN'!G22 -> 0 | G31: ='6. WET'!G20 -> 0 | H31: ='7. CFTN'!G21 -> 0 | J31: ='8. WET RP, HP'!F14 -> 0 | K31: ='4. PEI'!G17 -> 0 | L31: ='8. WET RP, HP'!F15 -> 0 | N31: 0
B32: 10 | C32: 1991 Realignment | D32: ='3. CSS'!H25 -> 0 | E32: ='4. PEI'!H21 -> 0 | F32: ='5. INN'!H22 -> 0 | G32: ='6. WET'!H20 -> 0 | H32: ='7. CFTN'!H21 -> 0 | J32: ='8. WET RP, HP'!G14 -> 0 | K32: ='4. PEI'!H17 -> 0 | L32: ='8. WET RP, HP'!G15 -> 0 | N32: 0
B33: 11 | C33: Behavioral Health Subaccount | D33: ='3. CSS'!I25 -> 0 | E33: ='4. PEI'!I21 -> 0 | F33: ='5. INN'!I22 -> 0 | G33: ='6. WET'!I20 -> 0 | H33: ='7. CFTN'!I21 -> 0 | J33: ='8. WET RP, HP'!H14 -> 0 | K33: ='4. PEI'!I17 -> 0 | L33: ='8. WET RP, HP'!H15 -> 0 | N33: 0
B34: 12 | C34: Other | D34: ='3. CSS'!J25 -> 46293 | E34: ='4. PEI'!J21 -> 8450 | F34: ='5. INN'!J22 -> 0 | G34: ='6. WET'!J20 -> 0 | H34: ='7. CFTN'!J21 -> 0 | J34: ='8. WET RP, HP'!I14 -> 0 | K34: ='4. PEI'!J17 -> 0 | L34: ='8. WET RP, HP'!I15 -> 0 | N34: 54743
B35: 13 | C35: TOTAL | D35: =SUM(D30:D34) -> 868018 | E35: =SUM(E30:E34) -> 306043 | F35: 0 | G35: 41186 | H35: 12519 | I35: 0 | J35: 0 | K35: 0 | L35: 0 | N35: 1227766
B38: SECTION 5: MHSA Planning Costs | D38: TOTAL
B39: 14 | C39: Total Annual Planning Costs | D39: ='3. CSS'!K14+'4. PEI'!K14+'5. INN'!K14+'6. WET'!K14+'7. CFTN'!K14 -> 13310
B40: 15 | C40: Total Evaluation Costs | D40: ='3. CSS'!K15+'4. PEI'!K15+'5. INN'!K19+'6. WET'!K15+'7. CFTN'!K16+'7. CFTN'!K17 -> 0
B41: 16 | C41: Total Administration | D41: ='3. CSS'!K16+'4. PEI'!K16+'5. INN'!K15+'5. INN'!K18+'6. WET'!K16+'7. CFTN'!K18+'7. CFTN'!K19 -> 338379

Sheet 3. CSS
B2: ='1. Information'!B2 -> Version 7/1/2018
B3: ='1. Information'!B3 -> Annual Mental Health Services Act Revenue and Expenditure Report
B4: ='1. Information'!B4 -> Fiscal Year 2017-18
B5: Community Services and Supports (CSS) Summary
B7: County: | D7: =IF(ISBLANK('1. Information'!D8),"",'1. Information'!D8) -> Sierra | F7: Date: | G7: =IF(ISBLANK('1. Information'!D7),"",'1. Information'!D7) -> 2018-12-31
B9: SECTION ONE
F11: A | G11: B | H11: C | I11: D | J11: E | K11: F
F12: MHSA Funds | G12: Other Funds
F13: Total MHSA (Including Interest) | G13: Medi-Cal FFP | H13: 1991 Realignment | I13: Behavioral Health Subaccount | J13: Other | K13: Grand Total
B14: 1 | C14: CSS Annual Planning Costs | F14: 5597 | K14: =SUM(F14:J14) -> 5597
B15: 2 | C15: CSS Evaluation Costs | K15: =SUM(F15:J15) -> 0
B16: 3 | C16: CSS Administration Costs | F16: 184220 | K16: 184220
B17: 4 | C17: CSS Funds Transferred to JPA | K17: 0
B18: 5 | C18: CSS Expenditure Incurred by JPA | K18: 0
B19: 6 | C19: CSS Funds Transferred to CalHFA | K19: 0
B20: 7 | C20: CSS Funds Transferred to WET | F20: 227631 | K20: 227631
B21: 8 | C21: CSS Funds Transferred to CFTN | K21: 0
B22: 9 | C22: CSS Funds Transferred to PR | K22: 0
B23: 10 | C23: CSS Program Expenditures | F23: =SUM(G33:G132) -> 631908 | G23: =SUM(H33:H132) -> 0 | H23: =SUM(I33:I132) -> 0 | I23: =SUM(J33:J132) -> 0 | J23: =SUM(K33:K132) -> 46293 | K23: 678201
B24: 11 | C24: Total CSS Expenditures (Excluding Funds Transferred to JPA) | F24: =SUM(F14:F16,F18:F23) -> 1049356 | G24: =SUM(G14:G16,G18:G23) -> 0 | H24: =SUM(H14:H16,H18:H23) -> 0 | I24: 0 | J24: 46293 | K24: =SUM(K14:K16,K18:K23) -> 1095649
B25: 12 | C25: Total CSS Expenditures (Excluding Funds Transferred) | F25: =SUM(F14:F16,F18,F23) -> 821725 | G25: =SUM(G14:G16,G18,G23) -> 0 | H25: 0 | I25: 0 | J25: 46293 | K25: =SUM(K14:K16,K18,K23) -> 868018
B28: SECTION TWO
C30: A | D30: B | E30: C | F30: D | G30: E | H30: F | I30: G | J30: H | K30: I | L30: J
D31: CSS Component | G31: MHSA Funds | H31: Other Funds
B32: # | C32: County Code | D32: Program Name | E32: Prior Program Name | F32: Service Category | G32: Total MHSA (Including Interest) | H32: Medi-Cal FFP | I32: 1991 Realignment | J32: Behavioral Health Subaccount | K32: Other | L32: Grand Total
B33: 1 | C33: =IF(L33<>0,VLOOKUP($D$7,Info_County_Code,2,FALSE),"") -> 46 | D33: Wellness Center | F33: Non-FSP | G33: 74841 | L33: =SUM(G33:K33) -> 74841
B34: 2 | C34: 46 | D34: Ways to Wellness | F34: Non-FSP | G34: 1351 | L34: =SUM(G34:K34) -> 1351
B35: 3 | C35: 46 | D35: General Service Delivery | F35: Non-FSP | G35: 342009 | K35: 46293 | L35: 388302
B36: 4 | C36: 46 | D36: Front Porch Program | F36: Non-FSP | G36: 420 | L36: 420
B37: 5 | C37: 46 | D37: Full Service Partnership | F37: FSP | G37: 213287 | L37: 213287
B38: 6 | L38: 0
B39: 7 | L39: 0
B40: 8 | L40: 0
B41: 9 | L41: 0
B42: 10 | L42: 0
B43: 11 | L43: 0
B44: 12 | L44: 0
B45: 13 | L45: 0
B46: 14 | L46: 0
B47: 15 | L47: 0
B48: 16 | L48: 0
B49: 17 | L49: 0
B50: 18 | L50: 0
B51: 19 | L51: 0
B52: 20 | L52: 0
B53: 21 | L53: 0
B54: 22 | L54: 0
B55: 23 | L55: 0
B56: 24 | L56: 0
B57: 25 | L57: 0
B58: 26 | L58: 0
B59: 27 | L59: 0
B60: 28 | L60: 0
B61: 29 | L61: 0
B62: 30 | L62: 0
B63: 31 | L63: 0
B64: 32 | L64: 0
B65: 33 | C65: =IF(L65<>0,VLOOKUP($D$7,Info_County_Code,2,FALSE),"") ->  | L65: 0
B66: 34 | L66: 0
B67: 35 | L67: 0
B68: 36 | L68: 0
B69: 37 | L69: 0
B70: 38 | L70: 0
B71: 39 | L71: 0
B72: 40 | L72: 0
B73: 41 | L73: 0
B74: 42 | L74: 0
B75: 43 | L75: 0
B76: 44 | L76: 0
B77: 45 | L77: =SUM(G77:K77) -> 0
B78: 46 | L78: 0
B79: 47 | L79: 0
B80: 48 | L80: 0
B81: 49 | L81: 0
B82: 50 | L82: 0
B83: 51 | L83: 0
B84: 52 | L84: 0
B85: 53 | L85: 0
B86: 54 | L86: 0
B87: 55 | L87: 0
B88: 56 | L88: 0
B89: 57 | L89: 0
B90: 58 | L90: 0
B91: 59 | L91: 0
B92: 60 | L92: 0
B93: 61 | L93: 0
B94: 62 | L94: 0
B95: 63 | L95: 0
B96: 64 | L96: 0
B97: 65 | C97: =IF(L97<>0,VLOOKUP($D$7,Info_County_Code,2,FALSE),"") ->  | L97: 0
B98: 66 | L98: =SUM(G98:K98) -> 0
B99: 67 | L99: 0
B100: 68 | L100: 0
B101: 69 | L101: 0
B102: 70 | L102: 0
B103: 71 | L103: 0
B104: 72 | L104: 0
B105: 73 | L105: 0
B106: 74 | L106: 0
B107: 75 | L107: 0
B108: 76 | L108: 0
B109: 77 | L109: 0
B110: 78 | L110: =SUM(G110:K110) -> 0
B111: 79 | L111: =SUM(G111:K111) -> 0
B112: 80 | L112: 0
B113: 81 | L113: 0
B114: 82 | L114: 0
B115: 83 | L115: 0
B116: 84 | L116: 0
B117: 85 | L117: 0
B118: 86 | L118: 0
B119: 87 | L119: 0
B120: 88 | L120: =SUM(G120:K120) -> 0
B121: 89 | L121: =SUM(G121:K121) -> 0
B122: 90 | L122: 0
B123: 91 | L123: =SUM(G123:K123) -> 0
B124: 92 | L124: 0
B125: 93 | L125: 0
B126: 94 | L126: 0
B127: 95 | L127: =SUM(G127:K127) -> 0
B128: 96 | L128: =SUM(G128:K128) -> 0
B129: 97 | L129: =SUM(G129:K129) -> 0
B130: 98 | L130: =SUM(G130:K130) -> 0
B131: 99 | L131: 0
B132: 100 | L132: 0

Sheet 4. PEI
B2: ='1. Information'!B2 -> Version 7/1/2018
B3: ='1. Information'!B3 -> Annual Mental Health Services Act Revenue and Expenditure Report
B4: ='1. Information'!B4 -> Fiscal Year 2017-18
B5: Prevention and Early Intervention (PEI) Summary
B7: County: | D7: =IF(ISBLANK('1. Information'!D8),"",'1. Information'!D8) -> Sierra | F7: Date: | G7: =IF(ISBLANK('1. Information'!D7),"",'1. Information'!D7) -> 2018-12-31
B9: SECTION ONE
F11: A | G11: B | H11: C | I11: D | J11: E | K11: F
F12: MHSA Funds | G12: Other Funds
F13: Total MHSA (Including Interest) | G13: Medi-Cal FFP | H13: 1991 Realignment | I13: Behavioral Health Subaccount | J13: Other | K13: Grand Total
B14: 1 | C14: PEI Annual Planning Costs | F14: 7713 | K14: =SUM(F14:J14) -> 7713
B15: 2 | C15: PEI Evaluation Costs | K15: =SUM(F15:J15) -> 0
B16: 3 | C16: PEI Administration Costs | F16: 138612 | K16: 138612
B17: 4 | C17: PEI Funds Expended by CalMHSA for PEI SW | K17: 0
B18: 5 | C18: PEI Funds Transferred to JPA | K18: 0
B19: 6 | C19: PEI Expenditure Incurred by JPA | K19: 0
B20: 7 | C20: PEI Program Expenditures | F20: =SUMIF($G$36:$G$135,"Combined Summary",L$36:L$135) + SUMIF($F$36:$F$135,"Standalone",L$36:L$135) -> 151268 | G20: =SUMIF($G$36:$G$135,"Combined Summary",M$36:M$135) + SUMIF($F$36:$F$135,"Standalone",M$36:M$135) -> 0 | H20: =SUMIF($G$36:$G$135,"Combined Summary",N$36:N$135) + SUMIF($F$36:$F$135,"Standalone",N$36:N$135) -> 0 | I20: =SUMIF($G$36:$G$135,"Combined Summary",O$36:O$135) + SUMIF($F$36:$F$135,"Standalone",O$36:O$135) -> 0 | J20: =SUMIF($G$36:$G$135,"Combined Summary",P$36:P$135) + SUMIF($F$36:$F$135,"Standalone",P$36:P$135) -> 8450 | K20: 159718
B21: 8 | C21: Total PEI Expenditures (Excluding Transfers and PEI SW) | F21: =SUM(F14:F16,F19:F20) -> 297593 | G21: =SUM(G14:G16,G19:G20) -> 0 | H21: 0 | I21: 0 | J21: 8450 | K21: 306043
B23: SECTION TWO
F25: A | G25: B
F26: Percent Expended for Clients 25 and Under, All PEI | G26: Percent Expended for Clients 25 and Under, JPA
B29: 1 | C29: MHSA PEI Fund Expenditures in Program to Clients 25 and Under (calculated from weighted program values) divided by Total MHSA PEI Expenditures | F29: =IF(F21=0,"",((SUMPRODUCT($K$36:$K$135,$L$36:$L$135)+(F19*G29))/$F$21)) -> 0.1614336466
B31: SECTION THREE
C33: A | D33: B | E33: C | F33: D | G33: E | H33: F | I33: G | J33: H | K33: I | L33: J | M33: K | N33: L | O33: M | P33: N | Q33: O
D34: PEI Component | L34: MHSA Funds | M34: Other Funds
B35: # | C35: County | D35: Program Name | E35: Prior Program Name | F35: Combined/ Standalone | G35: Program Type | H35: Program Activity Name (in Combined Program) | I35: Subtotal Percentage for Combined Program | J35: % of PEI Expended on Clients 25 & Under (Standalone and Program Activities in Combined Program) | K35: % of PEI Expended on Clients 25 & Under (Combined Summary and Standalone) | L35: Total MHSA (Including Interest) | M35: Medi-Cal FFP | N35: 1991 Realignment | O35: Behavioral Health Subaccount | P35: Other | Q35: Grand Total | R35: Check | S35: Check
B36: 1 | C36: =IF(AND(NOT(COUNTA(D36:J36)),(NOT(COUNTA(L36:P36)))),"",VLOOKUP($D$7,Info_County_Code,2,FALSE)) -> 46 | D36: Music Together | F36: Standalone | G36: Early Intervention | I36: 1 | J36: 1 | K36: =IF(OR(G36="Combined Summary",F36="Standalone"),(SUMPRODUCT(--(D$36:D$135=D36),I$36:I$135,J$36:J$135)),"") -> 1 | L36: 110 | Q36: =SUM(L36:P36) -> 110 | R36: =IF(OR(G36="Combined Summary",F36="Standalone"),(SUMIF(D$36:D$135,D36,I$36:I$135)),"") -> 1 | S36: =IF(AND(F36="Standalone",NOT(R36=1)),"ERROR",IF(AND(G36="Combined Summary",NOT(R36=1)),"ERROR","")) -> 
B37: 2 | C37: 46 | D37: Nurturing Parenting | F37: Combined | G37: Combined Summary | H37: Prevention | I37: 0.66 | J37: 1 | K37: =IF(OR(G37="Combined Summary",F37="Standalone"),(SUMPRODUCT(--(D$36:D$135=D37),I$36:I$135,J$36:J$135)),"") -> 0.66 | L37: 22471 | Q37: =SUM(L37:P37) -> 22471 | R37: =IF(OR(G37="Combined Summary",F37="Standalone"),(SUMIF(D$36:D$135,D37,I$36:I$135)),"") -> 0.66 | S37: =IF(AND(F37="Standalone",NOT(R37=1)),"ERROR",IF(AND(G37="Combined Summary",NOT(R37=1)),"ERROR","")) -> ERROR
B38: 3 | C38: 46 | D38: Wellness Center | F38: Combined | G38: Combined Summary | H38: Prevention | I38: 0.85 | J38: 0.15 | K38: 0.1275 | L38: 86535 | Q38: 86535 | R38: 0.85 | S38: ERROR
B39: 4 | C39: 46 | D39: Early Intervention Treatment | F39: Standalone | G39: Early Intervention | I39: 1 | J39: 1 | K39: 1 | L39: 15024 | Q39: 15024 | R39: 1
B40: 5 | C40: 46 | D40: Veteran's Peer Support | F40: Combined | G40: Combined Summary | H40: Prevention | I40: 0.97 | J40: 0.03 | K40: 0.0291 | L40: 13177 | Q40: 13177 | R40: 0.97 | S40: ERROR
B41: 6 | C41: 46 | D41: Student Parent Navigation | F41: Combined | G41: Combined Summary | H41: Early Intervention | I41: 0.8 | J41: 0.75 | K41: 0.6 | L41: 11100 | P41: 8450 | Q41: 19550 | R41: 0.8 | S41: ERROR
B42: 7 | C42: 46 | D42: Mental Health First Aid | F42: Combined | G42: Combined Summary | H42: Prevention | I42: 0.5 | K42: 0 | L42: 2851 | Q42: 2851 | R42: 0.5 | S42: ERROR
B43: 8 | Q43: 0
B44: 9 | Q44: 0
B45: 10 | Q45: 0
B46: 11 | Q46: 0
B47: 12 | Q47: 0
B48: 13 | Q48: 0
B49: 14 | Q49: 0
B50: 15 | Q50: 0
B51: 16 | Q51: 0
B52: 17 | Q52: 0
B53: 18 | Q53: 0
B54: 19 | Q54: 0
B55: 20 | Q55: 0
B56: 21 | Q56: 0
B57: 22 | Q57: 0
B58: 23 | Q58: 0
B59: 24 | Q59: 0
B60: 25 | Q60: 0
B61: 26 | Q61: 0
B62: 27 | Q62: 0
B63: 28 | Q63: 0
B64: 29 | Q64: 0
B65: 30 | Q65: 0
B66: 31 | Q66: 0
B67: 32 | Q67: 0
B68: 33 | C68: =IF(AND(NOT(COUNTA(D68:J68)),(NOT(COUNTA(L68:P68)))),"",VLOOKUP($D$7,Info_County_Code,2,FALSE)) ->  | Q68: 0
B69: 34 | Q69: 0
B70: 35 | Q70: 0
B71: 36 | Q71: 0
B72: 37 | Q72: 0
B73: 38 | Q73: 0
B74: 39 | Q74: 0
B75: 40 | Q75: 0
B76: 41 | Q76: 0
B77: 42 | Q77: 0
B78: 43 | Q78: 0
B79: 44 | Q79: 0
B80: 45 | Q80: 0
B81: 46 | Q81: 0
B82: 47 | Q82: 0
B83: 48 | Q83: 0
B84: 49 | Q84: 0
B85: 50 | Q85: 0
B86: 51 | Q86: 0
B87: 52 | Q87: 0
B88: 53 | Q88: 0
B89: 54 | Q89: 0
B90: 55 | Q90: 0
B91: 56 | Q91: 0
B92: 57 | Q92: 0
B93: 58 | Q93: =SUM(L93:P93) -> 0
B94: 59 | Q94: 0
B95: 60 | Q95: 0
B96: 61 | Q96: 0
B97: 62 | Q97: 0
B98: 63 | Q98: 0
B99: 64 | Q99: 0
B100: 65 | C100: =IF(AND(NOT(COUNTA(D100:J100)),(NOT(COUNTA(L100:P100)))),"",VLOOKUP($D$7,Info_County_Code,2,FALSE)) ->  | Q100: 0
B101: 66 | K101: =IF(OR(G101="Combined Summary",F101="Standalone"),(SUMPRODUCT(--(D$36:D$135=D101),I$36:I$135,J$36:J$135)),"") ->  | Q101: =SUM(L101:P101) -> 0 | R101: =IF(OR(G101="Combined Summary",F101="Standalone"),(SUMIF(D$36:D$135,D101,I$36:I$135)),"") ->  | S101: =IF(AND(F101="Standalone",NOT(R101=1)),"ERROR",IF(AND(G101="Combined Summary",NOT(R101=1)),"ERROR","")) -> 
B102: 67 | Q102: 0
B103: 68 | Q103: 0
B104: 69 | Q104: 0
B105: 70 | Q105: 0
B106: 71 | Q106: 0
B107: 72 | Q107: =SUM(L107:P107) -> 0
B108: 73 | Q108: =SUM(L108:P108) -> 0
B109: 74 | Q109: 0
B110: 75 | Q110: 0
B111: 76 | Q111: 0
B112: 77 | Q112: 0
B113: 78 | Q113: 0
B114: 79 | Q114: 0
B115: 80 | Q115: 0
B116: 81 | Q116: 0
B117: 82 | Q117: 0
B118: 83 | Q118: 0
B119: 84 | Q119: 0
B120: 85 | Q120: 0
B121: 86 | Q121: 0
B122: 87 | Q122: 0
B123: 88 | Q123: =SUM(L123:P123) -> 0
B124: 89 | Q124: =SUM(L124:P124) -> 0
B125: 90 | Q125: 0
B126: 91 | Q126: 0
B127: 92 | Q127: 0
B128: 93 | Q128: 0
B129: 94 | Q129: 0
B130: 95 | Q130: 0
B131: 96 | Q131: 0
B132: 97 | C132: =IF(AND(NOT(COUNTA(D132:J132)),(NOT(COUNTA(L132:P132)))),"",VLOOKUP($D$7,Info_County_Code,2,FALSE)) ->  | Q132: 0
B133: 98 | Q133: 0
B134: 99 | Q134: 0
B135: 100 | Q135: 0

Sheet 5. INN
B2: ='1. Information'!B2 -> Version 7/1/2018
B3: ='1. Information'!B3 -> Annual Mental Health Services Act Revenue and Expenditure Report
B4: ='1. Information'!B4 -> Fiscal Year 2017-18
B5: Innovation (INN) Summary
B7: County: | D7: =IF(ISBLANK('1. Information'!D8),"",'1. Information'!D8) -> Sierra | F7: Date: | G7: =IF(ISBLANK('1. Information'!D7),"",'1. Information'!D7) -> 2018-12-31
B9: SECTION ONE
F11: A | G11: B | H11: C | I11: D | J11: E | K11: F
F12: MHSA Funds | G12: Other Funds
F13: Total MHSA (Including Interest) | G13: Medi-Cal FFP | H13: 1991 Realignment | I13: Behavioral Health Subaccount | J13: Other | K13: Grand Total
B14: 1 | C14: INN Annual Planning Costs | K14: =SUM(F14:J14) -> 0
B15: 2 | C15: INN Indirect Administration | K15: =SUM(F15:J15) -> 0
B16: 3 | C16: INN Funds Transferred to JPA | K16: =SUM(F16:J16) -> 0
B17: 4 | C17: INN Expenditure Incurred by JPA | K17: =SUM(F17:J17) -> 0
B18: 5 | C18: INN Project Administration | F18: =SUMIF($J$29:$J$132,"Project Administration",K$29:K$132) -> 0 | G18: =SUMIF($J$29:$J$132,"Project Administration",L$29:L$132) -> 0 | H18: =SUMIF($J$29:$J$132,"Project Administration",M$29:M$132) -> 0 | I18: =SUMIF($J$29:$J$132,"Project Administration",N$29:N$132) -> 0 | J18: =SUMIF($J$29:$J$132,"Project Administration",O$29:O$132) -> 0 | K18: =SUM(F18:J18) -> 0
B19: 6 | C19: INN Project Evaluation | F19: =SUMIF($J$29:$J$132,"Project Evaluation",K$29:K$132) -> 0 | G19: =SUMIF($J$29:$J$132,"Project Evaluation",L$29:L$132) -> 0 | H19: =SUMIF($J$29:$J$132,"Project Evaluation",M$29:M$132) -> 0 | I19: =SUMIF($J$29:$J$132,"Project Evaluation",N$29:N$132) -> 0 | J19: =SUMIF($J$29:$J$132,"Project Evaluation",O$29:O$132) -> 0 | K19: 0
B20: 7 | C20: INN Project Direct | F20: =SUMIF($J$29:$J$132,"Project Direct",K$29:K$132) -> 0 | G20: =SUMIF($J$29:$J$132,"Project Direct",L$29:L$132) -> 0 | H20: =SUMIF($J$29:$J$132,"Project Direct",M$29:M$132) -> 0 | I20: =SUMIF($J$29:$J$132,"Project Direct",N$29:N$132) -> 0 | J20: =SUMIF($J$29:$J$132,"Project Direct",O$29:O$132) -> 0 | K20: 0
B21: 8 | C21: INN Project Subtotal | F21: =SUM(F18:F20) -> 0 | G21: =SUM(G18:G20) -> 0 | H21: =SUM(H18:H20) -> 0 | I21: =SUM(I18:I20) -> 0 | J21: =SUM(J18:J20) -> 0 | K21: =SUM(K18:K20) -> 0
B22: 9 | C22: Total Innovation Expenditures (Excluding Transfers to JPA) | F22: =SUM(F14:F15,F17,F18:F20) -> 0 | G22: 0 | H22: 0 | I22: 0 | J22: 0 | K22: 0
B24: SECTION TWO
C26: A | D26: B | E26: C | F26: D | G26: E | H26: F | I26: G | J26: H | K26: I | L26: J | M26: K | N26: L | O26: M | P26: N
D27: INN Component | K27: MHSA Funds | L27: Other Funds
B28: # | C28: County | D28: Project Name | E28: Prior Project Name | F28: Project MHSOAC Approval Date | G28: Project Start Date | H28: MHSOAC-Authorized MHSA INN Project Budget | I28: Amended MHSOAC-Authorized MHSA INN Project Budget | J28: Project Expenditure Type | K28: Total MHSA (Including Interest) | L28: Medi-Cal FFP | M28: 1991 Realignment | N28: BH Subaccount | O28: Other | P28: Grand Total
B29: 1 | C29: =IF(P32<>0,VLOOKUP($D$7,Info_County_Code,2,FALSE),"") ->  | J29: Project Administration | P29: =SUM(K29:O29) -> 0
B30: 1 | C30: =IF(ISBLANK(C29),"",C29) ->  | J30: Project Evaluation | P30: 0
B31: 1 | C31: =IF(ISBLANK(C29),"",C29) ->  | J31: Project Direct | P31: 0
B32: 1 | C32: =IF(ISBLANK(C29),"",C29) ->  | J32: Project Subtotal | K32: =SUM(K29:K31) -> 0 | L32: =SUM(L29:L31) -> 0 | M32: =SUM(M29:M31) -> 0 | N32: 0 | O32: 0 | P32: 0
B33: 2 | C33: =IF(P36<>0,VLOOKUP($D$7,Info_County_Code,2,FALSE),"") ->  | J33: =IF(NOT(ISBLANK(D33)),$J$29,"") ->  | P33: =SUM(K33:O33) -> 0
B34: 2 | C34: =IF(ISBLANK(C33),"",C33) ->  | J34: =IF(NOT(ISBLANK(D33)),$J$30,"") ->  | P34: 0
B35: 2 | C35: =IF(ISBLANK(C33),"",C33) ->  | J35: =IF(NOT(ISBLANK(D33)),$J$31,"") ->  | P35: 0
B36: 2 | C36: =IF(ISBLANK(C33),"",C33) ->  | J36: =IF(NOT(ISBLANK(D33)),$J$32,"") ->  | K36: =SUM(K33:K35) -> 0 | L36: =SUM(L33:L35) -> 0 | M36: =SUM(M33:M35) -> 0 | N36: 0 | O36: 0 | P36: 0
B37: 2 | C37: =IF(P40<>0,VLOOKUP($D$7,Info_County_Code,2,FALSE),"") ->  | J37: =IF(NOT(ISBLANK(D37)),$J$29,"") ->  | P37: 0
B38: 2 | C38: =IF(ISBLANK(C37),"",C37) ->  | J38: =IF(NOT(ISBLANK(D37)),$J$30,"") ->  | P38: 0
B39: 2 | C39: =IF(ISBLANK(C37),"",C37) ->  | J39: =IF(NOT(ISBLANK(D37)),$J$31,"") ->  | P39: 0
B40: 2 | C40: =IF(ISBLANK(C37),"",C37) ->  | J40: =IF(NOT(ISBLANK(D37)),$J$32,"") ->  | K40: =SUM(K37:K39) -> 0 | L40: =SUM(L37:L39) -> 0 | M40: =SUM(M37:M39) -> 0 | N40: =SUM(N37:N39) -> 0 | O40: =SUM(O37:O39) -> 0 | P40: 0
B41: 3 | C41: =IF(P44<>0,VLOOKUP($D$7,Info_County_Code,2,FALSE),"") ->  | J41: =IF(NOT(ISBLANK(D41)),$J$29,"") ->  | P41: 0
B42: 3 | C42: =IF(ISBLANK(C41),"",C41) ->  | J42: =IF(NOT(ISBLANK(D41)),$J$30,"") ->  | P42: 0
B43: 3 | C43: =IF(ISBLANK(C41),"",C41) ->  | J43: =IF(NOT(ISBLANK(D41)),$J$31,"") ->  | P43: 0
B44: 3 | C44: =IF(ISBLANK(C41),"",C41) ->  | J44: =IF(NOT(ISBLANK(D41)),$J$32,"") ->  | K44: =SUM(K41:K43) -> 0 | L44: =SUM(L41:L43) -> 0 | M44: =SUM(M41:M43) -> 0 | N44: =SUM(N41:N43) -> 0 | O44: =SUM(O41:O43) -> 0 | P44: 0
B45: 4 | C45: =IF(P48<>0,VLOOKUP($D$7,Info_County_Code,2,FALSE),"") ->  | J45: =IF(NOT(ISBLANK(D45)),$J$29,"") ->  | P45: 0
B46: 4 | C46: =IF(ISBLANK(C45),"",C45) ->  | J46: =IF(NOT(ISBLANK(D45)),$J$30,"") ->  | P46: 0
B47: 4 | C47: =IF(ISBLANK(C45),"",C45) ->  | J47: =IF(NOT(ISBLANK(D45)),$J$31,"") ->  | P47: 0
B48: 4 | C48: =IF(ISBLANK(C45),"",C45) ->  | J48: =IF(NOT(ISBLANK(D45)),$J$32,"") ->  | K48: =SUM(K45:K47) -> 0 | L48: =SUM(L45:L47) -> 0 | M48: =SUM(M45:M47) -> 0 | N48: =SUM(N45:N47) -> 0 | O48: =SUM(O45:O47) -> 0 | P48: 0
B49: 5 | C49: =IF(P52<>0,VLOOKUP($D$7,Info_County_Code,2,FALSE),"") ->  | J49: =IF(NOT(ISBLANK(D49)),$J$29,"") ->  | P49: 0
B50: 5 | C50: =IF(ISBLANK(C49),"",C49) ->  | J50: =IF(NOT(ISBLANK(D49)),$J$30,"") ->  | P50: 0
B51: 5 | C51: =IF(ISBLANK(C49),"",C49) ->  | J51: =IF(NOT(ISBLANK(D49)),$J$31,"") ->  | P51: 0
B52: 5 | C52: =IF(ISBLANK(C49),"",C49) ->  | J52: =IF(NOT(ISBLANK(D49)),$J$32,"") ->  | K52: =SUM(K49:K51) -> 0 | L52: =SUM(L49:L51) -> 0 | M52: =SUM(M49:M51) -> 0 | N52: =SUM(N49:N51) -> 0 | O52: =SUM(O49:O51) -> 0 | P52: 0
B53: 6 | C53: =IF(P56<>0,VLOOKUP($D$7,Info_County_Code,2,FALSE),"") ->  | J53: =IF(NOT(ISBLANK(D53)),$J$29,"") ->  | P53: 0
B54: 6 | C54: =IF(ISBLANK(C53),"",C53) ->  | J54: =IF(NOT(ISBLANK(D53)),$J$30,"") ->  | P54: 0
B55: 6 | C55: =IF(ISBLANK(C53),"",C53) ->  | J55: =IF(NOT(ISBLANK(D53)),$J$31,"") ->  | P55: 0
B56: 6 | C56: =IF(ISBLANK(C53),"",C53) ->  | J56: =IF(NOT(ISBLANK(D53)),$J$32,"") ->  | K56: =SUM(K53:K55) -> 0 | L56: =SUM(L53:L55) -> 0 | M56: =SUM(M53:M55) -> 0 | N56: =SUM(N53:N55) -> 0 | O56: =SUM(O53:O55) -> 0 | P56: 0
B57: 7 | C57: =IF(P60<>0,VLOOKUP($D$7,Info_County_Code,2,FALSE),"") ->  | J57: =IF(NOT(ISBLANK(D57)),$J$29,"") ->  | P57: 0
B58: 7 | C58: =IF(ISBLANK(C57),"",C57) ->  | J58: =IF(NOT(ISBLANK(D57)),$J$30,"") ->  | P58: 0
B59: 7 | C59: =IF(ISBLANK(C57),"",C57) ->  | J59: =IF(NOT(ISBLANK(D57)),$J$31,"") ->  | P59: 0
B60: 7 | C60: =IF(ISBLANK(C57),"",C57) ->  | J60: =IF(NOT(ISBLANK(D57)),$J$32,"") ->  | K60: =SUM(K57:K59) -> 0 | L60: =SUM(L57:L59) -> 0 | M60: =SUM(M57:M59) -> 0 | N60: =SUM(N57:N59) -> 0 | O60: =SUM(O57:O59) -> 0 | P60: 0
B61: 8 | C61: =IF(P64<>0,VLOOKUP($D$7,Info_County_Code,2,FALSE),"") ->  | J61: =IF(NOT(ISBLANK(D61)),$J$29,"") ->  | P61: 0
B62: 8 | C62: =IF(ISBLANK(C61),"",C61) ->  | J62: =IF(NOT(ISBLANK(D61)),$J$30,"") ->  | P62: 0
B63: 8 | C63: =IF(ISBLANK(C61),"",C61) ->  | J63: =IF(NOT(ISBLANK(D61)),$J$31,"") ->  | P63: 0
B64: 8 | C64: =IF(ISBLANK(C61),"",C61) ->  | J64: =IF(NOT(ISBLANK(D61)),$J$32,"") ->  | K64: =SUM(K61:K63) -> 0 | L64: =SUM(L61:L63) -> 0 | M64: =SUM(M61:M63) -> 0 | N64: =SUM(N61:N63) -> 0 | O64: =SUM(O61:O63) -> 0 | P64: 0
B65: 9 | C65: =IF(P68<>0,VLOOKUP($D$7,Info_County_Code,2,FALSE),"") ->  | J65: =IF(NOT(ISBLANK(D65)),$J$29,"") ->  | P65: =SUM(K65:O65) -> 0
B66: 9 | C66: =IF(ISBLANK(C65),"",C65) ->  | J66: =IF(NOT(ISBLANK(D65)),$J$30,"") ->  | P66: 0
B67: 9 | C67: =IF(ISBLANK(C65),"",C65) ->  | J67: =IF(NOT(ISBLANK(D65)),$J$31,"") ->  | P67: 0
B68: 9 | C68: =IF(ISBLANK(C65),"",C65) ->  | J68: =IF(NOT(ISBLANK(D65)),$J$32,"") ->  | K68: =SUM(K65:K67) -> 0 | L68: =SUM(L65:L67) -> 0 | M68: =SUM(M65:M67) -> 0 | N68: =SUM(N65:N67) -> 0 | O68: =SUM(O65:O67) -> 0 | P68: 0
B69: 10 | C69: =IF(P72<>0,VLOOKUP($D$7,Info_County_Code,2,FALSE),"") ->  | J69: =IF(NOT(ISBLANK(D69)),$J$29,"") ->  | P69: 0
B70: 10 | C70: =IF(ISBLANK(C69),"",C69) ->  | J70: =IF(NOT(ISBLANK(D69)),$J$30,"") ->  | P70: 0
B71: 10 | C71: =IF(ISBLANK(C69),"",C69) ->  | J71: =IF(NOT(ISBLANK(D69)),$J$31,"") ->  | P71: 0
B72: 10 | C72: =IF(ISBLANK(C69),"",C69) ->  | J72: =IF(NOT(ISBLANK(D69)),$J$32,"") ->  | K72: =SUM(K69:K71) -> 0 | L72: =SUM(L69:L71) -> 0 | M72: =SUM(M69:M71) -> 0 | N72: =SUM(N69:N71) -> 0 | O72: =SUM(O69:O71) -> 0 | P72: 0
B73: 11 | C73: =IF(P76<>0,VLOOKUP($D$7,Info_County_Code,2,FALSE),"") ->  | J73: =IF(NOT(ISBLANK(D73)),$J$29,"") ->  | P73: 0
B74: 11 | C74: =IF(ISBLANK(C73),"",C73) ->  | J74: =IF(NOT(ISBLANK(D73)),$J$30,"") ->  | P74: 0
B75: 11 | C75: =IF(ISBLANK(C73),"",C73) ->  | J75: =IF(NOT(ISBLANK(D73)),$J$31,"") ->  | P75: 0
B76: 11 | C76: =IF(ISBLANK(C73),"",C73) ->  | J76: =IF(NOT(ISBLANK(D73)),$J$32,"") ->  | K76: =SUM(K73:K75) -> 0 | L76: =SUM(L73:L75) -> 0 | M76: =SUM(M73:M75) -> 0 | N76: =SUM(N73:N75) -> 0 | O76: =SUM(O73:O75) -> 0 | P76: 0
B77: 12 | C77: =IF(P80<>0,VLOOKUP($D$7,Info_County_Code,2,FALSE),"") ->  | J77: =IF(NOT(ISBLANK(D77)),$J$29,"") ->  | P77: 0
B78: 12 | C78: =IF(ISBLANK(C77),"",C77) ->  | J78: =IF(NOT(ISBLANK(D77)),$J$30,"") ->  | P78: 0
B79: 12 | C79: =IF(ISBLANK(C77),"",C77) ->  | J79: =IF(NOT(ISBLANK(D77)),$J$31,"") ->  | P79: 0
B80: 12 | C80: =IF(ISBLANK(C77),"",C77) ->  | J80: =IF(NOT(ISBLANK(D77)),$J$32,"") ->  | K80: =SUM(K77:K79) -> 0 | L80: =SUM(L77:L79) -> 0 | M80: =SUM(M77:M79) -> 0 | N80: =SUM(N77:N79) -> 0 | O80: =SUM(O77:O79) -> 0 | P80: 0
B81: 13 | C81: =IF(P84<>0,VLOOKUP($D$7,Info_County_Code,2,FALSE),"") ->  | J81: =IF(NOT(ISBLANK(D81)),$J$29,"") ->  | P81: 0
B82: 13 | C82: =IF(ISBLANK(C81),"",C81) ->  | J82: =IF(NOT(ISBLANK(D81)),$J$30,"") ->  | P82: 0
B83: 13 | C83: =IF(ISBLANK(C81),"",C81) ->  | J83: =IF(NOT(ISBLANK(D81)),$J$31,"") ->  | P83: 0
B84: 13 | C84: =IF(ISBLANK(C81),"",C81) ->  | J84: =IF(NOT(ISBLANK(D81)),$J$32,"") ->  | K84: =SUM(K81:K83) -> 0 | L84: =SUM(L81:L83) -> 0 | M84: =SUM(M81:M83) -> 0 | N84: =SUM(N81:N83) -> 0 | O84: =SUM(O81:O83) -> 0 | P84: 0
B85: 14 | C85: =IF(P88<>0,VLOOKUP($D$7,Info_County_Code,2,FALSE),"") ->  | J85: =IF(NOT(ISBLANK(D85)),$J$29,"") ->  | P85: 0
B86: 14 | C86: =IF(ISBLANK(C85),"",C85) ->  | J86: =IF(NOT(ISBLANK(D85)),$J$30,"") ->  | P86: 0
B87: 14 | C87: =IF(ISBLANK(C85),"",C85) ->  | J87: =IF(NOT(ISBLANK(D85)),$J$31,"") ->  | P87: 0
B88: 14 | C88: =IF(ISBLANK(C85),"",C85) ->  | J88: =IF(NOT(ISBLANK(D85)),$J$32,"") ->  | K88: =SUM(K85:K87) -> 0 | L88: =SUM(L85:L87) -> 0 | M88: =SUM(M85:M87) -> 0 | N88: =SUM(N85:N87) -> 0 | O88: =SUM(O85:O87) -> 0 | P88: 0
B89: 15 | C89: =IF(P92<>0,VLOOKUP($D$7,Info_County_Code,2,FALSE),"") ->  | J89: =IF(NOT(ISBLANK(D89)),$J$29,"") ->  | P89: =SUM(K89:O89) -> 0
B90: 15 | C90: =IF(ISBLANK(C89),"",C89) ->  | J90: =IF(NOT(ISBLANK(D89)),$J$30,"") ->  | P90: 0
B91: 15 | C91: =IF(ISBLANK(C89),"",C89) ->  | J91: =IF(NOT(ISBLANK(D89)),$J$31,"") ->  | P91: 0
B92: 15 | C92: =IF(ISBLANK(C89),"",C89) ->  | J92: =IF(NOT(ISBLANK(D89)),$J$32,"") ->  | K92: =SUM(K89:K91) -> 0 | L92: =SUM(L89:L91) -> 0 | M92: =SUM(M89:M91) -> 0 | N92: 0 | O92: 0 | P92: 0
B93: 16 | C93: =IF(P96<>0,VLOOKUP($D$7,Info_County_Code,2,FALSE),"") ->  | J93: =IF(NOT(ISBLANK(D93)),$J$29,"") ->  | P93: 0
B94: 16 | C94: =IF(ISBLANK(C93),"",C93) ->  | J94: =IF(NOT(ISBLANK(D93)),$J$30,"") ->  | P94: 0
B95: 16 | C95: =IF(ISBLANK(C93),"",C93) ->  | J95: =IF(NOT(ISBLANK(D93)),$J$31,"") ->  | P95: 0
B96: 16 | C96: =IF(ISBLANK(C93),"",C93) ->  | J96: =IF(NOT(ISBLANK(D93)),$J$32,"") ->  | K96: =SUM(K93:K95) -> 0 | L96: =SUM(L93:L95) -> 0 | M96: =SUM(M93:M95) -> 0 | N96: 0 | O96: 0 | P96: 0
B97: 17 | C97: =IF(P100<>0,VLOOKUP($D$7,Info_County_Code,2,FALSE),"") ->  | J97: =IF(NOT(ISBLANK(D97)),$J$29,"") ->  | P97: 0
B98: 17 | C98: =IF(ISBLANK(C97),"",C97) ->  | J98: =IF(NOT(ISBLANK(D97)),$J$30,"") ->  | P98: 0
B99: 17 | C99: =IF(ISBLANK(C97),"",C97) ->  | J99: =IF(NOT(ISBLANK(D97)),$J$31,"") ->  | P99: 0
B100: 17 | C100: =IF(ISBLANK(C97),"",C97) ->  | J100: =IF(NOT(ISBLANK(D97)),$J$32,"") ->  | K100: =SUM(K97:K99) -> 0 | L100: =SUM(L97:L99) -> 0 | M100: =SUM(M97:M99) -> 0 | N100: 0 | O100: 0 | P100: 0
B101: 18 | C101: =IF(P104<>0,VLOOKUP($D$7,Info_County_Code,2,FALSE),"") ->  | J101: =IF(NOT(ISBLANK(D101)),$J$29,"") ->  | P101: =SUM(K101:O101) -> 0
B102: 18 | C102: =IF(ISBLANK(C101),"",C101) ->  | J102: =IF(NOT(ISBLANK(D101)),$J$30,"") ->  | P102: 0
B103: 18 | C103: =IF(ISBLANK(C101),"",C101) ->  | J103: =IF(NOT(ISBLANK(D101)),$J$31,"") ->  | P103: 0
B104: 18 | C104: =IF(ISBLANK(C101),"",C101) ->  | J104: =IF(NOT(ISBLANK(D101)),$J$32,"") ->  | K104: =SUM(K101:K103) -> 0 | L104: =SUM(L101:L103) -> 0 | M104: =SUM(M101:M103) -> 0 | N104: 0 | O104: 0 | P104: 0
B105: 19 | C105: =IF(P108<>0,VLOOKUP($D$7,Info_County_Code,2,FALSE),"") ->  | J105: =IF(NOT(ISBLANK(D105)),$J$29,"") ->  | P105: 0
B106: 19 | C106: =IF(ISBLANK(C105),"",C105) ->  | J106: =IF(NOT(ISBLANK(D105)),$J$30,"") ->  | P106: 0
B107: 19 | C107: =IF(ISBLANK(C105),"",C105) ->  | J107: =IF(NOT(ISBLANK(D105)),$J$31,"") ->  | P107: 0
B108: 19 | C108: =IF(ISBLANK(C105),"",C105) ->  | J108: =IF(NOT(ISBLANK(D105)),$J$32,"") ->  | K108: =SUM(K105:K107) -> 0 | L108: =SUM(L105:L107) -> 0 | M108: =SUM(M105:M107) -> 0 | N108: 0 | O108: 0 | P108: 0
B109: 20 | C109: =IF(P112<>0,VLOOKUP($D$7,Info_County_Code,2,FALSE),"") ->  | J109: =IF(NOT(ISBLANK(D109)),$J$29,"") ->  | P109: =SUM(K109:O109) -> 0
B110: 20 | C110: =IF(ISBLANK(C109),"",C109) ->  | J110: =IF(NOT(ISBLANK(D109)),$J$30,"") ->  | P110: 0
B111: 20 | C111: =IF(ISBLANK(C109),"",C109) ->  | J111: =IF(NOT(ISBLANK(D109)),$J$31,"") ->  | P111: 0
B112: 20 | C112: =IF(ISBLANK(C109),"",C109) ->  | J112: =IF(NOT(ISBLANK(D109)),$J$32,"") ->  | K112: =SUM(K109:K111) -> 0 | L112: =SUM(L109:L111) -> 0 | M112: =SUM(M109:M111) -> 0 | N112: 0 | O112: 0 | P112: 0
B113: 21 | C113: =IF(P116<>0,VLOOKUP($D$7,Info_County_Code,2,FALSE),"") ->  | J113: =IF(NOT(ISBLANK(D113)),$J$29,"") ->  | P113: 0
B114: 21 | C114: =IF(ISBLANK(C113),"",C113) ->  | J114: =IF(NOT(ISBLANK(D113)),$J$30,"") ->  | P114: 0
B115: 21 | C115: =IF(ISBLANK(C113),"",C113) ->  | J115: =IF(NOT(ISBLANK(D113)),$J$31,"") ->  | P115: 0
B116: 21 | C116: =IF(ISBLANK(C113),"",C113) ->  | J116: =IF(NOT(ISBLANK(D113)),$J$32,"") ->  | K116: =SUM(K113:K115) -> 0 | L116: =SUM(L113:L115) -> 0 | M116: =SUM(M113:M115) -> 0 | N116: 0 | O116: 0 | P116: 0
B117: 22 | C117: =IF(P120<>0,VLOOKUP($D$7,Info_County_Code,2,FALSE),"") ->  | J117: =IF(NOT(ISBLANK(D117)),$J$29,"") ->  | P117: =SUM(K117:O117) -> 0
B118: 22 | C118: =IF(ISBLANK(C117),"",C117) ->  | J118: =IF(NOT(ISBLANK(D117)),$J$30,"") ->  | P118: 0
B119: 22 | C119: =IF(ISBLANK(C117),"",C117) ->  | J119: =IF(NOT(ISBLANK(D117)),$J$31,"") ->  | P119: 0
B120: 22 | C120: =IF(ISBLANK(C117),"",C117) ->  | J120: =IF(NOT(ISBLANK(D117)),$J$32,"") ->  | K120: =SUM(K117:K119) -> 0 | L120: =SUM(L117:L119) -> 0 | M120: =SUM(M117:M119) -> 0 | N120: 0 | O120: 0 | P120: 0
B121: 23 | C121: =IF(P124<>0,VLOOKUP($D$7,Info_County_Code,2,FALSE),"") ->  | J121: =IF(NOT(ISBLANK(D121)),$J$29,"") ->  | P121: 0
B122: 23 | C122: =IF(ISBLANK(C121),"",C121) ->  | J122: =IF(NOT(ISBLANK(D121)),$J$30,"") ->  | P122: 0
B123: 23 | C123: =IF(ISBLANK(C121),"",C121) ->  | J123: =IF(NOT(ISBLANK(D121)),$J$31,"") ->  | P123: 0
B124: 23 | C124: =IF(ISBLANK(C121),"",C121) ->  | J124: =IF(NOT(ISBLANK(D121)),$J$32,"") ->  | K124: =SUM(K121:K123) -> 0 | L124: =SUM(L121:L123) -> 0 | M124: =SUM(M121:M123) -> 0 | N124: 0 | O124: 0 | P124: 0
B125: 24 | C125: =IF(P128<>0,VLOOKUP($D$7,Info_County_Code,2,FALSE),"") ->  | J125: =IF(NOT(ISBLANK(D125)),$J$29,"") ->  | P125: =SUM(K125:O125) -> 0
B126: 24 | C126: =IF(ISBLANK(C125),"",C125) ->  | J126: =IF(NOT(ISBLANK(D125)),$J$30,"") ->  | P126: 0
B127: 24 | C127: =IF(ISBLANK(C125),"",C125) ->  | J127: =IF(NOT(ISBLANK(D125)),$J$31,"") ->  | P127: 0
B128: 24 | C128: =IF(ISBLANK(C125),"",C125) ->  | J128: =IF(NOT(ISBLANK(D125)),$J$32,"") ->  | K128: =SUM(K125:K127) -> 0 | L128: =SUM(L125:L127) -> 0 | M128: =SUM(M125:M127) -> 0 | N128: 0 | O128: 0 | P128: 0
B129: 25 | C129: =IF(P132<>0,VLOOKUP($D$7,Info_County_Code,2,FALSE),"") ->  | J129: =IF(NOT(ISBLANK(D129)),$J$29,"") ->  | P129: 0
B130: 25 | C130: =IF(ISBLANK(C129),"",C129) ->  | J130: =IF(NOT(ISBLANK(D129)),$J$30,"") ->  | P130: 0
B131: 25 | C131: =IF(ISBLANK(C129),"",C129) ->  | J131: =IF(NOT(ISBLANK(D129)),$J$31,"") ->  | P131: 0
B132: 25 | C132: =IF(ISBLANK(C129),"",C129) ->  | J132: =IF(NOT(ISBLANK(D129)),$J$32,"") ->  | K132: =SUM(K129:K131) -> 0 | L132: =SUM(L129:L131) -> 0 | M132: =SUM(M129:M131) -> 0 | N132: 0 | O132: 0 | P132: 0

Sheet 6. WET
B2: ='1. Information'!B2 -> Version 7/1/2018
B3: ='1. Information'!B3 -> Annual Mental Health Services Act Revenue and Expenditure Report
B4: ='1. Information'!B4 -> Fiscal Year 2017-18
B5: Workforce Education and Training (WET) Summary
C7: County: | D7: =IF(ISBLANK('1. Information'!D8),"",'1. Information'!D8) -> Sierra | F7: Date: | G7: =IF(ISBLANK('1. Information'!D7),"",'1. Information'!D7) -> 2018-12-31
B9: SECTION ONE
F11: A | G11: B | H11: C | I11: D | J11: E | K11: F
F12: MHSA Fund | G12: Other Fund
F13: Total MHSA (Including Interest) | G13: Medi-Cal FFP | H13: 1991 Realignment | I13: Behavioral Health Subaccount | J13: Other | K13: Grand Total
B14: 1 | C14: WET Annual Planning Costs | K14: =SUM(F14:J14) -> 0
B15: 2 | C15: WET Evaluation Costs | K15: =SUM(F15:J15) -> 0
B16: 3 | C16: WET Administration Costs | F16: 15547 | K16: 15547
B17: 4 | C17: WET Funds Transferred to JPA | K17: 0
B18: 5 | C18: WET Expenditure Incurred by JPA | K18: 0
B19: 6 | C19: WET Program Expenditures | F19: =SUM(E28:E32) -> 25639 | G19: =SUM(F28:F32) -> 0 | H19: 0 | I19: 0 | J19: =SUM(I28:I32) -> 0 | K19: 25639
B20: 7 | C20: Total WET Expenditures (Excluding Transfers to JPA) | F20: =SUM(F14:F16,F18:F19) -> 41186 | G20: =SUM(G14:G16,G18:G19) -> 0 | H20: 0 | I20: 0 | J20: 0 | K20: =SUM(K14:K16,K18:K19) -> 41186
B23: SECTION TWO
C25: A | D25: B | E25: C | F25: D | G25: E | H25: F | I25: G | J25: H
D26: Wet Component | E26: MHSA Funds | F26: Other Funds
B27: # | C27: County | D27: Funding Category | E27: Total MHSA (Including Interest) | F27: Medi-Cal FFP | G27: 1991 Realignment | H27: Behavioral Health Subaccount | I27: Other | J27: Grand Total
B28: 1 | C28: =IF(J28<>0,VLOOKUP($D$7,Info_County_Code,2,FALSE),"") ->  | D28: Workforce Staffing | J28: =SUM(E28:I28) -> 0
B29: 2 | C29: =IF(J29<>0,VLOOKUP($D$7,Info_County_Code,2,FALSE),"") -> 46 | D29: Training/Technical Assistance | E29: 25639 | J29: =SUM(E29:I29) -> 25639
B30: 3 | C30: =IF(J30<>0,VLOOKUP($D$7,Info_County_Code,2,FALSE),"") ->  | D30: MH Career Pathways | J30: 0
B31: 4 | C31: =IF(J31<>0,VLOOKUP($D$7,Info_County_Code,2,FALSE),"") ->  | D31: Residency/Internship | J31: 0
B32: 5 | C32: =IF(J32<>0,VLOOKUP($D$7,Info_County_Code,2,FALSE),"") ->  | D32: Financial Incentive | J32: 0

Sheet 7. CFTN
B2: ='1. Information'!B2 -> Version 7/1/2018
B3: ='1. Information'!B3 -> Annual Mental Health Services Act Revenue and Expenditure Report
B4: ='1. Information'!B4 -> Fiscal Year 2017-18
B5: Capital Facility Technological Needs (CFTN) Summary
B7: County: | D7: =IF(ISBLANK('1. Information'!D8),"",'1. Information'!D8) -> Sierra | F7: Date: | G7: =IF(ISBLANK('1. Information'!D7),"",'1. Information'!D7) -> 2018-12-31
B9: SECTION ONE
F11: A | G11: B | H11: C | I11: D | J11: E | K11: F
F12: MHSA Funds | G12: Other Fund
F13: Total MHSA (Including Interest) | G13: Medi-Cal FFP | H13: 1991 Realignment | I13: Behavioral Health Subaccount | J13: Other | K13: Grand Total
B14: 1 | C14: CF Annual Planning Costs | K14: =SUM(F14:J14) -> 0
B15: 2 | C15: TN Annual Planning Costs | K15: =SUM(F15:J15) -> 0
B16: 3 | C16: CF Evaluation Costs | K16: 0
B17: 4 | C17: TN Evaluation Costs | K17: 0
B18: 5 | C18: CF Administration | K18: 0
B19: 6 | C19: TN Administration | K19: 0
B20: 7 | C20: CFTN Program Expenditure | F20: =SUM(G28:G47) -> 12519 | G20: =SUM(H28:H47) -> 0 | H20: =SUM(I28:I47) -> 0 | I20: =SUM(J28:J47) -> 0 | J20: =SUM(K28:K47) -> 0 | K20: 12519
B21: 8 | C21: Total CFTN Expenditures | F21: =SUM(F14:F20) -> 12519 | G21: =SUM(G14:G20) -> 0 | H21: =SUM(H14:H20) -> 0 | I21: 0 | J21: 0 | K21: =SUM(K14:K20) -> 12519
B23: SECTION TWO
C25: A | D25: B | E25: C | F25: D | G25: E | H25: F | I25: G | J25: H | K25: I | L25: J
D26: CFTN Component | G26: MHSA Fund | H26: Other Fund
B27: # | C27: County | D27: Project Name | E27: Prior Project Name | F27: Project Type | G27: Total MSHA (Including Interest) | H27: Medi-Cal FFP | I27: 1991 Realignment | J27: Behavioral Health Subaccount | K27: Other | L27: Grand Total
B28: 1 | C28: =IF(L28<>0,VLOOKUP($D$7,Info_County_Code,2,FALSE),"") -> 46 | D28: 207 Front Street - Addition to Wellness Center | F28: Capital Facility | G28: 12519 | L28: =SUM(G28:K28) -> 12519
B29: 2 | L29: =SUM(G29:K29) -> 0
B30: 3 | L30: 0
B31: 4 | L31: 0
B32: 5 | L32: 0
B33: 6 | L33: 0
B34: 7 | L34: 0
B35: 8 | L35: 0
B36: 9 | L36: 0
B37: 10 | L37: 0
B38: 11 | L38: 0
B39: 12 | L39: 0
B40: 13 | L40: 0
B41: 14 | L41: 0
B42: 15 | L42: 0
B43: 16 | L43: 0
B44: 17 | L44: 0
B45: 18 | L45: 0
B46: 19 | L46: 0
B47: 20 | L47: 0

Sheet 8. WET RP, HP
B2: ='1. Information'!B2 -> Version 7/1/2018
B3: ='1. Information'!B3 -> Annual Mental Health Services Act Revenue and Expenditure Report
B4: ='1. Information'!B4 -> Fiscal Year 2017-18
B5: WET RP and MHSA HP Summary
B7: County: | D7: =IF(ISBLANK('1. Information'!D8),"",'1. Information'!D8) -> Sierra | F7: Date: | G7: =IF(ISBLANK('1. Information'!D7),"",'1. Information'!D7) -> 2018-12-31
B9: SECTION ONE
C11: A | D11: B | E11: C | F11: D | G11: E | H11: F | I11: G | J11: H
D12: WET RP, HP Component | E12: MHSA Funds | F12: Other Funds
B13: # | C13: County Code | D13: Funding Type | E13: Total MHSA (Including Interest) | F13: Medi-Cal FFP | G13: 1991 Realignment | H13: Behavioral Health Subaccount | I13: Other | J13: Grand Total
B14: 1 | C14: =IF(J14<>0,VLOOKUP($D$7,Info_County_Code,2,FALSE),"") ->  | D14: WET Regional Partnerships (WET RP) | J14: =SUM(E14:I14) -> 0
B15: 2 | C15: =IF(J15<>0,VLOOKUP($D$7,Info_County_Code,2,FALSE),"") ->  | D15: MHSA Housing Program (Unencumbered Funds) | J15: =SUM(E15:I15) -> 0

Sheet 9. Adjustment (MHSA)
B2: ='1. Information'!B2 -> Version 7/1/2018
B3: ='1. Information'!B3 -> Annual Mental Health Services Act Revenue and Expenditure Report
B4: ='1. Information'!B4 -> Fiscal Year 2017-18
B5: Adjustments Worksheet (MHSA)
B7: County: | D7: =IF(ISBLANK('1. Information'!D8),"",'1. Information'!D8) -> Sierra | F7: Date | G7: =IF(ISBLANK('1. Information'!D7),"",'1. Information'!D7) -> 2018-12-31
B9: SECTION ONE
C11: A | D11: B | E11: C | F11: D | G11: E
B12: # | C12: County | D12: Component | E12: Adjustment to FY | F12: Amount | G12: Reason
B13: 1 | C13: =IF(F13<>0,VLOOKUP($D$7,Info_County_Code,2,FALSE),"") -> 
B14: 2
B15: 3
B16: 4
B17: 5
B18: 6
B19: 7
B20: 8
B21: 9
B22: 10
B23: 11
B24: 12
B25: 13
B26: 14
B27: 15
B28: 16
B29: 17
B30: 18
B31: 19
B32: 20
B33: 21
B34: 22
B35: 23
B36: 24
B37: 25
B38: 26
B39: 27
B40: 28
B41: 29
B42: 30
C43: =IF(NOT(COUNTA(D43:G43)),"",VLOOKUP(D21,Info_County_Code,2,FALSE)) -> 
B44: SECTION TWO
C46: A | D46: B | E46: C | F46: D | G46: E
B47: # | C47: County | D47: Adjustment to | E47: Adjustment to FY | F47: Amount | G47: Reason
B48: 1 | C48: =IF(F48<>0,VLOOKUP($D$7,Info_County_Code,2,FALSE),"") ->  | D48: Interest Revenue
B49: 2 | D49: Interest Revenue
B50: 3 | D50: Interest Revenue
B51: 4 | D51: Interest Revenue
B52: 5 | D52: Interest Revenue
B53: 6 | D53: Interest Revenue
B54: 7 | D54: Interest Revenue
B55: 8 | D55: Interest Revenue
B56: 9 | D56: Interest Revenue
B57: 10 | D57: Interest Revenue
B58: 11 | D58: Interest Revenue
B59: 12 | D59: Interest Revenue
B60: 13 | D60: Interest Revenue
B61: 14 | D61: Interest Revenue
B62: 15 | D62: Interest Revenue
B63: 16 | D63: Interest Revenue
B64: 17 | D64: Interest Revenue
B65: 18 | D65: Interest Revenue
B66: 19 | D66: Interest Revenue
B67: 20 | D67: Interest Revenue
B68: 21 | D68: Interest Revenue
B69: 22 | D69: Interest Revenue
B70: 23 | D70: Interest Revenue
B71: 24 | D71: Interest Revenue
B72: 25 | D72: Interest Revenue
B73: 26 | D73: Interest Revenue
B74: 27 | D74: Interest Revenue
B75: 28 | D75: Interest Revenue
B76: 29 | D76: Interest Revenue
B77: 30 | D77: Interest Revenue
B79: SECTION THREE
C81: A | D81: B | E81: C | F81: D | G81: E
B82: # | C82: County | D82: Adjustment to | E82: Adjustment to FY | F82: Amount | G82: Reason
B83: 1 | C83: =IF(F83<>0,VLOOKUP($D$7,Info_County_Code,2,FALSE),"") ->  | D83: Prudent Reserve
B84: 2 | D84: Prudent Reserve
B85: 3 | D85: Prudent Reserve
B86: 4 | D86: Prudent Reserve
B87: 5 | D87: Prudent Reserve
B88: 6 | D88: Prudent Reserve
B89: 7 | D89: Prudent Reserve
B90: 8 | D90: Prudent Reserve
B91: 9 | D91: Prudent Reserve
B92: 10 | D92: Prudent Reserve
B93: 11 | D93: Prudent Reserve
B94: 12 | D94: Prudent Reserve
B95: 13 | D95: Prudent Reserve
B96: 14 | D96: Prudent Reserve
B97: 15 | D97: Prudent Reserve
B98: 16 | D98: Prudent Reserve
B99: 17 | D99: Prudent Reserve
B100: 18 | D100: Prudent Reserve
B101: 19 | D101: Prudent Reserve
B102: 20 | D102: Prudent Reserve
B103: 21 | D103: Prudent Reserve
B104: 22 | D104: Prudent Reserve
B105: 23 | D105: Prudent Reserve
B106: 24 | D106: Prudent Reserve
B107: 25 | D107: Prudent Reserve
B108: 26 | D108: Prudent Reserve
B109: 27 | D109: Prudent Reserve
B110: 28 | D110: Prudent Reserve
B111: 29 | D111: Prudent Reserve
B112: 30 | D112: Prudent Reserve

Sheet 10. Adjustment (FFP)
B2: ='1. Information'!B2 -> Version 7/1/2018
B3: ='1. Information'!B3 -> Annual Mental Health Services Act Revenue and Expenditure Report
B4: ='1. Information'!B4 -> Fiscal Year 2017-18
B5: FFP Revenue Adjustment
B7: County: | D7: =IF(ISBLANK('1. Information'!D8),"",'1. Information'!D8) -> Sierra | F7: Date: | G7: =IF(ISBLANK('1. Information'!D7),"",'1. Information'!D7) -> 2018-12-31
B9: SECTION ONE
C11: A | D11: B | E11: C | F11: D | G11: E | H11: F | I11: G
B12: # | C12: County | D12: Fiscal Year | E12: Cost Report Stage | F12: Component | G12: Beginning Balance | H12: Adjustment Amount | I12: Ending Balance
B13: 1 | C13: =IF(I13<>0,VLOOKUP($D$7,Info_County_Code,2,FALSE),"") ->  | I13: =SUM(G13:H13) -> 0
B14: 2 | I14: =SUM(G14:H14) -> 0
B15: 3 | I15: 0
B16: 4 | I16: 0
B17: 5 | I17: 0
B18: 6 | I18: 0
B19: 7 | I19: 0
B20: 8 | I20: 0
B21: 9 | I21: 0
B22: 10 | I22: 0
B23: 11 | I23: 0
B24: 12 | I24: 0
B25: 13 | I25: 0
B26: 14 | I26: 0
B27: 15 | I27: 0
B28: 16 | I28: 0
B29: 17 | I29: 0
B30: 18 | I30: 0
B31: 19 | I31: 0
B32: 20 | I32: 0
B33: 21 | I33: 0
B34: 22 | I34: 0
B35: 23 | I35: 0
B36: 24 | I36: 0
B37: 25 | I37: 0
B38: 26 | I38: 0
B39: 27 | I39: 0
B40: 28 | I40: 0
B41: 29 | I41: 0
B42: 30 | I42: 0
B43: 31 | I43: 0
B44: 32 | I44: 0
B45: 33 | I45: 0
B46: 34 | I46: 0
B47: 35 | I47: 0
B48: 36 | I48: 0
B49: 37 | I49: 0
B50: 38 | I50: 0
B51: 39 | I51: 0
B52: 40 | I52: 0

Sheet 11. Comments
B2: ='1. Information'!B2 -> Version 7/1/2018
B3: ='1. Information'!B3 -> Annual Mental Health Services Act Revenue and Expenditure Report
B4: ='1. Information'!B4 -> Fiscal Year 2017-18
B5: Comments
C7: Comments
B8: 1 | C8: Evaluation Costs for all programs are embedded in Administration.
B9: 2
B10: 3
B11: 4
B12: 5
B13: 6
B14: 7
B15: 8
B16: 9
B17: 10
B18: 11
B19: 12
B20: 13
B21: 14
B22: 15
B23: 16
B24: 17
B25: 18
B26: 19
B27: 20
B28: 21
B29: 22
B30: 23
B31: 24
B32: 25
B33: 26
B34: 27
B35: 28
B36: 29
B37: 30
B38: 31
B39: 32
B40: 33
B41: 34
B42: 35
B43: 36
B44: 37
B45: 38
B46: 39
B47: 40

Sheet drop down fields (hidden)
A1: Info_County_Code | C1: Info_Population | D1: CSS_Service_Category | E1: PEI_Combined_Standalone | F1: PEI_Program_Type | G1: INN_Expenditure_Type | H1: WET_Funding_Category | I1: CFTN_Project_Type | J1: Adjustment_MHSA_Component | K1: MHSA_Adjustment_FY | L1: FFP_Adjustment_FY | M1: Adjustment_Reason | N1: Cost_Report_Stage
A2: Alameda | B2: 1 | C2: Yes | D2: FSP | E2: Combined | F2: Prevention | G2: Project | H2: Workforce Staffing | I2: Capital Facility | J2: CSS | K2: FY 2015-16 | L2: FY 2009-10 | M2: Cost Report Reconciliation | N2: Audited
A3: Alpine | B3: 2 | C3: No | D3: Non-FSP | E3: Standalone | F3: Early Intervention | G3: Project Administration | H3: Training/Technical Assistance | I3: Technological Need | J3: PEI | K3: FY 2016-17 | L3: FY 2010-11 | M3: Cost Report Audit | N3: Settled
A4: Amador | B4: 3 | F4: Outreach | G4: Project Evaluation | H4: MH Career Pathways | J4: INN | L4: FY 2011-12 | M4: SDMC Chart Audit | N4: Initial
A5: Berkeley City | B5: 65 | F5: Stigma & Discrimination Reduction | H5: Residency/Internship | J5: WET | L5: FY 2012-13 | M5: Local Quality Assurance Audit
A6: Butte | B6: 4 | F6: Suicide Prevention | H6: Financial Incentive | J6: CFTN | L6: FY 2013-14 | M6: Error
A7: Calaveras | B7: 5 | F7: Access and Linkage | J7: WET RP | L7: FY 2014-15 | M7: Other
A8: Colusa | B8: 6 | F8: Improving Timely Access | J8: PEI SW | L8: FY 2015-16
A9: Contra Costa | B9: 7 | F9: Combined Summary | J9: MHSA HP | L9: FY 2016-17
A10: Del Norte | B10: 8 | J10: Prudent Reserve
A11: El Dorado | B11: 9
A12: Fresno | B12: 10
A13: Glenn | B13: 11
A14: Humboldt | B14: 12
A15: Imperial | B15: 13
A16: Inyo | B16: 14
A17: Kern | B17: 15
A18: Kings | B18: 16
A19: Lake | B19: 17
A20: Lassen | B20: 18
A21: Los Angeles | B21: 19
A22: Madera | B22: 20
A23: Marin | B23: 21
A24: Mariposa | B24: 22
A25: Mendocino | B25: 23
A26: Merced | B26: 24
A27: Modoc | B27: 25
A28: Mono | B28: 26
A29: Monterey | B29: 27
A30: Napa | B30: 28
A31: Nevada | B31: 29
A32: Orange | B32: 30
A33: Placer | B33: 31
A34: Plumas | B34: 32
A35: Riverside | B35: 33
A36: Sacramento | B36: 34
A37: San Benito | B37: 35
A38: San Bernardino | B38: 36
A39: San Diego | B39: 37
A40: San Francisco | B40: 38
A41: San Joaquin | B41: 39
A42: San Luis Obispo | B42: 40
A43: San Mateo | B43: 41
A44: Santa Barbara | B44: 42
A45: Santa Clara | B45: 43
A46: Santa Cruz | B46: 44
A47: Shasta | B47: 45
A48: Sierra | B48: 46
A49: Siskiyou | B49: 47
A50: Solano | B50: 48
A51: Sonoma | B51: 49
A52: Stanislaus | B52: 50
A53: Sutter/Yuba | B53: 63
A54: Tehama | B54: 52
A55: Tri-City | B55: 66
A56: Trinity | B56: 53
A57: Tulare | B57: 54
A58: Tuolumne | B58: 55
A59: Ventura | B59: 56
A60: Yolo | B60: 57

Sheet E-1 CountyState2017 (hidden)
D1: About the Data
A2: E-1: State/County Population Estimates with Annual Percent Change
A3: January 1, 2017 and 2018
A5: State/County | B5: Total Population | D5: Percent
B6: 2017-01-01 | C6: 2018-01-01 | D6: Change | E6: County Population: Over 200,000? (Yes or No)
A8: California | B8: 39500973 | C8: 39809693 | D8: 0.8
A10: Alameda | B10: 1646405 | C10: 1660202 | D10: 0.8 | E10: =IF(B10>=200000,"Yes", "No") -> Yes
A11: Alpine | B11: 1156 | C11: 1154 | D11: -0.2 | E11: =IF(B11>=200000,"Yes", "No") -> No
A12: Amador | B12: 38382 | C12: 38094 | D12: -0.8 | E12: No
A13: Butte | B13: 226403 | C13: 227621 | D13: 0.5 | E13: Yes
A14: Calaveras | B14: 45175 | C14: 45157 | D14: 0 | E14: No
A15: Colusa | B15: 22050 | C15: 22098 | D15: 0.2 | E15: No
A16: Contra Costa | B16: 1139313 | C16: 1149363 | D16: 0.9 | E16: Yes
A17: Del Norte | B17: 27060 | C17: 27221 | D17: 0.6 | E17: No
A18: El Dorado | B18: 186223 | C18: 188399 | D18: 1.2 | E18: No
A19: Fresno | B19: 995233 | C19: 1007229 | D19: 1.2 | E19: Yes
A20: Glenn | B20: 28730 | C20: 28796 | D20: 0.2 | E20: No
A21: Humboldt | B21: 136430 | C21: 136002 | D21: -0.3 | E21: No
A22: Imperial | B22: 187921 | C22: 190624 | D22: 1.4 | E22: No
A23: Inyo | B23: 18598 | C23: 18577 | D23: -0.1 | E23: No
A24: Kern | B24: 896101 | C24: 905801 | D24: 1.1 | E24: Yes
A25: Kings | B25: 149559 | C25: 151662 | D25: 1.4 | E25: No
A26: Lake | B26: 64740 | C26: 65081 | D26: 0.5 | E26: No
A27: Lassen | B27: 30661 | C27: 30911 | D27: 0.8 | E27: No
A28: Los Angeles | B28: 10231271 | C28: 10283729 | D28: 0.5 | E28: Yes
A29: Madera | B29: 156963 | C29: 158894 | D29: 1.2 | E29: No
A30: Marin | B30: 263262 | C30: 263886 | D30: 0.2 | E30: Yes
A31: Mariposa | B31: 18137 | C31: 18129 | D31: 0 | E31: No
A32: Mendocino | B32: 89092 | C32: 89299 | D32: 0.2 | E32: No
A33: Merced | B33: 275104 | C33: 279977 | D33: 1.8 | E33: Yes
A34: Modoc | B34: 9562 | C34: 9612 | D34: 0.5 | E34: No
A35: Mono | B35: 13759 | C35: 13822 | D35: 0.5 | E35: No
A36: Monterey | B36: 442149 | C36: 443281 | D36: 0.3 | E36: Yes
A37: Napa | B37: 141784 | C37: 141294 | D37: -0.3 | E37: No
A38: Nevada | B38: 98613 | C38: 99155 | D38: 0.5 | E38: No
A39: Orange | B39: 3198968 | C39: 3221103 | D39: 0.7 | E39: Yes
A40: Placer | B40: 383173 | C40: 389532 | D40: 1.7 | E40: Yes
A41: Plumas | B41: 19818 | C41: 19773 | D41: -0.2 | E41: No
A42: Riverside | B42: 2382640 | C42: 2415955 | D42: 1.4 | E42: Yes
A43: Sacramento | B43: 1513415 | C43: 1529501 | D43: 1.1 | E43: Yes
A44: San Benito | B44: 56879 | C44: 57088 | D44: 0.4 | E44: No
A45: San Bernardino | B45: 2155590 | C45: 2174938 | D45: 0.9 | E45: Yes
A46: San Diego | B46: 3309509 | C46: 3337456 | D46: 0.8 | E46: Yes
A47: San Francisco | B47: 874008 | C47: 883963 | D47: 1.1 | E47: Yes
A48: San Joaquin | B48: 747263 | C48: 758744 | D48: 1.5 | E48: Yes
A49: San Luis Obispo | B49: 279210 | C49: 280101 | D49: 0.3 | E49: Yes
A50: San Mateo | B50: 770256 | C50: 774155 | D50: 0.5 | E50: Yes
A51: Santa Barbara | B51: 450025 | C51: 453457 | D51: 0.8 | E51: Yes
A52: Santa Clara | B52: 1937473 | C52: 1956598 | D52: 1 | E52: Yes
A53: Santa Cruz | B53: 276504 | C53: 276864 | D53: 0.1 | E53: Yes
A54: Shasta | B54: 178148 | C54: 178271 | D54: 0.1 | E54: No
A55: Sierra | B55: 3203 | C55: 3207 | D55: 0.1 | E55: No
A56: Siskiyou | B56: 44655 | C56: 44612 | D56: -0.1 | E56: No
A57: Solano | B57: 436640 | C57: 439793 | D57: 0.7 | E57: Yes
A58: Sonoma | B58: 504613 | C58: 503332 | D58: -0.3 | E58: Yes
A59: Stanislaus | B59: 549976 | C59: 555624 | D59: 1 | E59: Yes
A60: Sutter | B60: 96919 | C60: 97238 | D60: 0.3 | E60: No
A61: Tehama | B61: 63949 | C61: 64039 | D61: 0.1 | E61: No
A62: Trinity | B62: 13634 | C62: 13635 | D62: 0 | E62: No
A63: Tulare | B63: 470716 | C63: 475834 | D63: 1.1 | E63: Yes
A64: Tuolumne | B64: 54725 | C64: 54740 | D64: 0 | E64: No
A65: Ventura | B65: 855910 | C65: 859073 | D65: 0.4 | E65: Yes
A66: Yolo | B66: 218673 | C66: 221270 | D66: 1.2 | E66: Yes
A67: Yuba | B67: 74645 | C67: 74727 | D67: 0.1 | E67: No
A69: Sutter/Yuba | B69: =B60+B67 -> 171564 | C69: =C60+C67 -> 171965 | E69: No
A70: Berkeley City | B70: 120700 | C70: 121874 | D70: 1 | E70: No
A71: Tri-City | B71: =B73+B74+B75 -> 224180 | C71: =C73+C74+C75 -> 225393 | E71: Yes
A73: Claremont | B73: 36293 | C73: 36446 | D73: 0.4
A74: La Verne | B74: 33169 | C74: 33260 | D74: 0.3
A75: Pomona | B75: 154718 | C75: 155687 | D75: 0.6
A78: Department of Finance
A79: Demographic Research Unit
A80: Phone: (916) 323-4086
A82: For more information: http://www.dof.ca.gov/research/demographic/reports/estimates/e-1/view.php
A83: Released on May 1, 2017
